Cogmind - Beta 17 @@@ ROGUE MODE // 2026.07.20 @ 18:21:32 Player: Akl Result: Destroyed by L-31 Rogue with Katana Performance ------------- Evolutions (0) 0 Regions Visited (4) 800 Robots Destroyed (14) 70 Value Destroyed (460) 460 Prototype IDs (0) 0 Alien Tech Used (0) 0 Bonus (346) 346 TOTAL SCORE: 1676 Bonus ------- Follower Combat Kills 46 Aligned with FarCom 300 Cogmind --------- Core Integrity 0/250 Matter 292/300 Energy 263/265 System Corruption 0% Temperature Cool (0) Movement Walking (120) Location -9/Mines Parts ------- > --- POWER (1) -------- Reinforced Ion Engine > --- PROPULSION (2) --- Aluminum Leg Aluminum Leg > --- UTILITY (2) ------ Small Storage Unit Signal Interpreter > --- WEAPON (2) ------- Assault Rifle Light Assault Rifle > --- INVENTORY (8) ---- Light Nuclear Core Aluminum Leg Aluminum Leg Seismic Detector Transport Network Coupler Trap Reconfigurator Mining Laser Mining Laser Peak State ------------ > --- POWER ------------ Ion Engine > --- PROPULSION ------- Aluminum Leg Aluminum Leg > --- UTILITY ---------- Small Storage Unit Improved Terrain Scanner > --- WEAPON ----------- Assault Rifle Light Assault Rifle > --- INVENTORY -------- Ion Engine Aluminum Leg Signal Interpreter Seismic Detector Mining Laser Mining Laser [Rating: 9] Favorites ----------- Power Ion Engine Engine Ion Engine Propulsion Aluminum Leg Leg Aluminum Leg Utility Small Storage Unit Device Improved Terrain Scanner Storage Small Storage Unit Processor Signal Interpreter Weapon Assault Rifle Ballistic Gun Assault Rifle Build | -11 -10 -10 -10 -9 ------- Run | Yrd Mat Min Exi Min Slots Evolved . | . . . . . Power . | . . . . . Propulsion . | . . . . . Utility . | . . . . . Weapon . | . . . . . Parts Attached 21 | 5 2 10 . 4 Power 3 | . . 2 . 1 Engine 3 | . . 2 . 1 Core . | . . . . . Reactor . | . . . . . Propulsion 9 | 2 . 5 . 2 Treads . | . . . . . Leg 9 | 2 . 5 . 2 Wheel . | . . . . . Hover . | . . . . . Flight . | . . . . . Utility 5 | 2 2 1 . . Device 2 | 2 . . . . Storage 2 | . 2 . . . Processor 1 | . . 1 . . Hackware . | . . . . . Protection . | . . . . . Artifact . | . . . . . Weapon 4 | 1 . 2 . 1 Energy Gun . | . . . . . Energy Cannon . | . . . . . Ballistic Gun 4 | 1 . 2 . 1 Ballistic Cannon . | . . . . . Launcher . | . . . . . Special Weapon . | . . . . . Impact Weapon . | . . . . . Slashing Weapon . | . . . . . Piercing Weapon . | . . . . . Special Melee Weapon . | . . . . . Unidentified Prototypes . | . . . . . Parts Lost 2 | . . 2 . . Power . | . . . . . Propulsion . | . . . . . Utility 1 | . . 1 . . Weapon 1 | . . 1 . . Highest Loss Streak 1 | . . 1 . . To Critical Strikes . | . . . . . Average Backups 6 | 1 4 5 5 7 Power 1 | . 1 1 1 1 Propulsion 1 | . . . 1 1 Utility 1 | . 1 1 1 2 Weapon 1 | . . 2 2 2 Tool/Special . | . . . . . Unused Backups 9 | . . . 1 8 Power 3 | . . . 1 2 Propulsion 2 | . . . . 2 Utility 2 | . . . . 2 Weapon 2 | . . . . 2 Tool/Special . | . . . . . Average Slot Usage (%) 95 | . 61 94 99 100 Engine 11 | . . 10 13 14 Leg 28 | . 28 28 28 28 Device 2 | . 15 5 . . Storage 13 | . 3 14 14 14 Processor 11 | . . 8 14 14 Ballistic Gun 26 | . 14 27 28 28 Peak Build Rating 9 | 7 7 9 8 9 Average Rating 7 | 3 6 7 7 8 On Entrance 5 | . 6 7 7 8 Avg Prop Armor Cover (%) 18 | 29 23 8 . . Naked Turns . | . . . . . Heaviest Build 18 | 4 8 14 13 18 Greatest Support 20 | 3 3 20 20 20 Greatest Overweight (x) 2 | 1 2 1 . . Average Overweight (x) . | . . . . . Largest Inventory Capacity 8 | 5 8 8 8 8 Average Capacity 7 | 5 5 8 8 8 Most Carried 8 | 4 6 8 6 8 Average Carried 6 | 1 4 5 5 7 Final Capacity 8 | 5 8 8 8 8 Final Carried 8 | 3 6 5 6 8 Class Distribution -------------------- 61% | Mutant 38% | Scavenger-Mutant Dominant Class ---------------- Mutant | -10/Materials Mutant | -10/Mines Mutant | -10/Exiles Scavenger-Mutant | -9/Mines Resources | -11 -10 -10 -10 -9 ----------- Run | Yrd Mat Min Exi Min Matter Collected 646 | 253 . 301 . 92 Remotely . | . . . . . Salvage Created 639 | 66 . 340 . 233 Parts 34 | 5 . 21 . 8 Haulers Intercepted . | . . . . . Recyclers Shooed 1 | 1 . . . . Parts Field Recycled . | . . . . . Retrieved Matter . | . . . . . Parts Self-Destructed . | . . . . . Prevented . | . . . . . Parts Restored . | . . . . . Kills | -11 -10 -10 -10 -9 ------- Run | Yrd Mat Min Exi Min Combat Hostiles Destroyed 11 | . . 8 . 3 Guns 11 | . . 8 . 3 Classes Destroyed 4 | 2 . 1 . 1 Tunneler 1 | 1 . . . . Recycler 2 | 1 . . . 1 Grunt 10 | . . 8 . 2 Brawler 1 | . . . . 1 Best Kill Streak 3 | 2 . 3 . 3 Combat Bots Only 3 | . . 3 . 3 Max Kills in Single Turn 1 | 1 . 1 . 1 Gunslinging . | . . . . . Exploded . | . . . . . Melee . | . . . . . Uniques/NPCs Destroyed . | . . . . . Combat | -11 -10 -10 -10 -9 -------- Run | Yrd Mat Min Exi Min Hostile Shots Fired 92 | . . 87 . 5 Missed 27 | . . 25 . 2 Hits 65 | . . 62 . 3 Melee 1 | . . . . 1 Projectile 64 | . . 62 . 2 Damage Taken 903 | . . 836 . 67 Core 262 | . . 219 . 43 Absorbed by Shields . | . . . . . Core Remaining (%) 100 | 100 . . . . Volleys Fired 55 | 5 3 37 . 10 Largest 2 | 1 1 2 . 2 Hottest 40 | 20 20 40 . 40 Shots Fired 102 | 5 3 74 . 20 Gun 102 | 5 3 74 . 20 Cannon . | . . . . . Launcher . | . . . . . Special . | . . . . . Kinetic 102 | 5 3 74 . 20 Thermal . | . . . . . Explosive . | . . . . . Electromagnetic . | . . . . . Robot Hit Streak 15 | 5 1 14 . 15 Robot Miss Streak 2 | . 1 2 . 1 Penetration Max . | . . . . . Secondary Targets 2 | . . 2 . . Max Gunslinging Chain 1 | . . 1 . . Shots Hit Robots 72 | 5 1 53 . 13 Core Hits 33 | 3 1 21 . 8 Critical Kills . | . . . . . Critical Parts Destroyed . | . . . . . Critical Strikes . | . . . . . Melee Attacks . | . . . . . Impact . | . . . . . Slashing . | . . . . . Piercing . | . . . . . Sneak Attacks . | . . . . . Combat Hostiles . | . . . . . Follow-up Attacks . | . . . . . Damage Inflicted 763 | 62 11 547 . 143 Guns 763 | 62 11 547 . 143 Cannons . | . . . . . Explosions . | . . . . . Melee . | . . . . . Ramming . | . . . . . Kinetic 763 | 62 11 547 . 143 Thermal . | . . . . . Explosive . | . . . . . Electromagnetic . | . . . . . Impact . | . . . . . Slashing . | . . . . . Piercing . | . . . . . Highest Corruption . | . . . . . Average Corruption . | . . . . . Corruption Purged . | . . . . . Corruption Blocked . | . . . . . Overload Shots . | . . . . . Overflow Damage . | . . . . . Projectiles . | . . . . . Explosions . | . . . . . Melee . | . . . . . Knockbacks . | . . . . . Impact . | . . . . . Kinetic . | . . . . . Secondary . | . . . . . Self-Inflicted Damage . | . . . . . Shots . | . . . . . Rammed . | . . . . . Targets Rammed . | . . . . . Kicked . | . . . . . Crushed . | . . . . . Highest Temperature 43 | . . 43 . 8 Average Temperature 11 | . . 12 . 6 Received Heat Transfer 489 | . . 474 . 15 Siege Activations . | . . . . . Martial Activations . | . . . . . Shielding Activations . | . . . . . Robots Disrupted . | . . . . . Combat Hostiles . | . . . . . Robots Corrupted . | . . . . . Combat Hostiles . | . . . . . Parts Fried . | . . . . . Impact Corruptions . | . . . . . Robots Melted . | . . . . . Combat Hostiles . | . . . . . Parts Melted . | . . . . . Heat Transferred . | . . . . . Parts Sabotaged . | . . . . . Parts Stolen . | . . . . . Parts Stripped . | . . . . . Power Chain Reactions . | . . . . . Alert | -11 -10 -10 -10 -9 ------- Run | Yrd Mat Min Exi Min Maximum Alert Level . | . . . . . Low Security (%) 100 | 100 100 100 . 100 Level 1 . | . . . . . Level 2 . | . . . . . Level 3 . | . . . . . Level 4 . | . . . . . Level 5 . | . . . . . High Security . | . . . . . Max Security . | . . . . . Peak Influence 103 | 10 12 90 . 103 Initial . | . . . . . Average 21 | 2 1 25 . 22 Influence Increases 493 | 10 12 253 . 218 Destroy 0b10 Robot/C 300 | . . 160 . 140 Destroy 0b10 Robot/NC 15 | 10 . . . 5 Destroy Leader 70 | . . 40 . 30 Allied During Kill 21 | . . 8 . 13 Successful Hack 12 | . 12 . . . Lose Combat Pursuer 75 | . . 45 . 30 Influence Decreases 493 | 10 12 211 42 218 Entered New Map 42 | . . . 42 . Time Decay 381 | 10 12 201 . 158 Lost Part 10 | . . 10 . . Lost Ally 60 | . . . . 60 Squads Dispatched 1 | . 1 . . . Investigation . | . . . . . Extermination . | . . . . . Reinforcement 1 | . 1 . . . Assault . | . . . . . Garrison . | . . . . . Intercept . | . . . . . Searches Triggered . | . . . . . Construction Impeded . | . . . . . Haulers Reinforced . | . . . . . Active Scanning Responses . | . . . . . Cargo Convoy Interrupts . | . . . . . Stealth | -11 -10 -10 -10 -9 --------- Run | Yrd Mat Min Exi Min Distress Signals . | . . . . . Communications Jammed . | . . . . . Distress Signals . | . . . . . Times Spotted 21 | . 1 11 . 9 Peak Tracking Total 4 | . 1 4 . 4 Tactical Retreats 3 | . . 2 . 1 Traps | -11 -10 -10 -10 -9 ------- Run | Yrd Mat Min Exi Min Traps Triggered . | . . . . . Indirectly . | . . . . . Trap Hack Attempts . | . . . . . Triggered . | . . . . . Disarmed . | . . . . . Reprogrammed . | . . . . . Reused . | . . . . . Traps Extracted . | . . . . . Installed . | . . . . . Triggered . | . . . . . Machines | -11 -10 -10 -10 -9 ---------- Run | Yrd Mat Min Exi Min Machines Disabled . | . . . . . Max in Single Turn . | . . . . . Machines Repaired . | . . . . . Machines Dismantled . | . . . . . Machines Sabotaged . | . . . . . Overloaded Fab Kills . | . . . . . Hacking | -11 -10 -10 -10 -9 --------- Run | Yrd Mat Min Exi Min Machines Accessed 3 | . 2 . 1 . Terminals 2 | . 2 . . . Fabricators . | . . . . . Repair Stations . | . . . . . Recycling Units . | . . . . . Scanalyzers . | . . . . . Garrison Access . | . . . . . Total Hacks 10 | . 3 . 7 . Successful 8 | . 1 . 7 . Failed 2 | . 2 . . . Catastrophic . | . . . . . Database Lockouts . | . . . . . Manual 1 | . . . 1 . Terminals 3 | . 3 . . . Fabricators . | . . . . . Repair Stations . | . . . . . Recycling Units . | . . . . . Scanalyzers . | . . . . . Garrison Access . | . . . . . Terminal Hacks 8 | . 1 . 7 . Record 8 | . 1 . 7 . Fabricator Hacks . | . . . . . Repair Station Hacks . | . . . . . Recycling Unit Hacks . | . . . . . Scanalyzer . | . . . . . Garrison Access Hacks . | . . . . . Unauthorized Hacks . | . . . . . Terminals . | . . . . . Fabricators . | . . . . . Repair Stations . | . . . . . Recycling Units . | . . . . . Scanalyzers . | . . . . . Garrison Access . | . . . . . Data Cores Recovered . | . . . . . Used . | . . . . . Hacking Detections 1 | . 1 . . . Full Trace Events . | . . . . . Feedback Events . | . . . . . Feedback Blocked . | . . . . . Robot Schematics Acquired . | . . . . . Robots Built . | . . . . . Authchips . | . . . . . Time . | . . . . . Total Robot Build Rating . | . . . . . Part Schematics Acquired . | . . . . . Parts Built . | . . . . . Authchips . | . . . . . Time . | . . . . . Total Part Build Rating . | . . . . . Part Studies Acquired . | . . . . . Parts Repaired . | . . . . . Time . | . . . . . Parts Recycled . | . . . . . Recycled Matter . | . . . . . Retrieved Matter . | . . . . . Retrieved Components . | . . . . . Parts Scanalyzed . | . . . . . Part Schematics Acquired . | . . . . . Parts Damaged . | . . . . . Bothacking | -11 -10 -10 -10 -9 ------------ Run | Yrd Mat Min Exi Min Used RIF Installer . | . . . . . Robots Hacked . | . . . . . Non-combat . | . . . . . Combat . | . . . . . Robot Hacks Applied . | . . . . . Relay Couplers Released . | . . . . . Fabnet Peak Effective % . | . . . . . Robots Rewired . | . . . . . Allies Hacked . | . . . . . Hacks Repelled . | . . . . . Allies | -11 -10 -10 -10 -9 -------- Run | Yrd Mat Min Exi Min Total Allies 3 | . . 3 . . Largest Group 3 | . . 3 3 3 Highest-Rated Group 40 | . . 40 40 40 Highest-Rated Ally 16 | . . 16 16 16 Total Orders . | . . . . . Ally Attacks 19 | . . . . 19 Total Damage 247 | . . . . 247 Kills 4 | . . . . 4 Allies Corrupted . | . . . . . Allies Melted . | . . . . . Intel | -11 -10 -10 -10 -9 ------- Run | Yrd Mat Min Exi Min Active Infowar (turns) 371 | 12 114 245 . . Terrain 371 | 12 114 245 . . Seismic 15 | 8 7 . . . Robot Analysis Total . | . . . . . Derelict Logs Recovered 1 | . . 1 . . Drone Launches . | . . . . . Drone Recoveries . | . . . . . Exploration | -11 -10 -10 -10 -9 ------------- Run | Yrd Mat Min Exi Min Turns Passed 2055 | 50 114 618 479 794 Spaces Moved 1404 | 49 130 403 370 452 Core 179 | 49 130 . . . Treads . | . . . . . Legs 1225 | . . 403 370 452 Wheels . | . . . . . Hover . | . . . . . Flight . | . . . . . Fastest Speed 50 | 50 50 120 120 120 Average Speed 112 | 56 59 121 120 120 Slowest Speed 190 | 100 150 190 120 120 Overloaded Moves . | . . . . . Propulsion Burnouts . | . . . . . Robots Hopped . | . . . . . Potential Cave-ins . | . . . . . Cave-ins Triggered . | . . . . . Exploration Rate (%) 45 | 4 25 69 71 60 Regions Visited 4 Branch Regions 3 Pre-discovered Areas 2 | . . 1 . 1 Known Exits Taken 2 | . . 1 1 . Unknown Exits Taken 2 | 1 1 . . . Scrap Searched 4 | . . 2 . 2 Spaces Dug . | . . . . . Terrain Destroyed . | . . . . . Melee . | . . . . . Projectile . | . . . . . AOE . | . . . . . Terrain Rammed . | . . . . . Walls Destroyed . | . . . . . Machines Disabled . | . . . . . Actions | -11 -10 -10 -10 -9 --------- Run | Yrd Mat Min Exi Min Total 1789 | 66 166 463 406 688 Wait 271 | . 20 6 31 214 Move 1400 | 48 129 402 369 452 Hop . | . . . . . Pick Up 21 | 7 6 2 3 3 Fast Attach 1 | . . 1 . . Attach 12 | 5 3 3 1 . Detach 3 | 1 2 . . . Swap 11 | . 1 6 . 4 Drop 15 | . 2 6 2 5 Fire 55 | 5 3 37 . 10 Melee . | . . . . . Ram . | . . . . . Kick . | . . . . . Crush . | . . . . . Escape Stasis . | . . . . . Rewire . | . . . . . Trap . | . . . . . Miscellaneous . | . . . . . Route ------- -11/Scrapyard -10/Materials -10/Mines (discovered 3 exits: [*Mat] / *Exi / [*Sub]) -10/Exiles (discovered 2 exits: *Min x2) -9/Mines History --------- Turn | Location | Event 28 | -11/Scrapyard | Discovered new exit (range 13) 51 | -11/Scrapyard | Entered Materials 127 | -10/Materials | Discovered new exit (range 16) 165 | -10/Materials | Entered Mines 310 | -10/Mines | Build established: Mutant 325 | -10/Mines | Found a hidden stash of uninstalled traps 377 | -10/Mines | Core integrity fell below 50% 568 | -10/Mines | Learned location of Storage (-7) 628 | -10/Mines | Assisted by bots powering up and referring to "LRC-V3" 631 | -10/Mines | Discovered new exit (range 10) 733 | -10/Mines | Core integrity fell below 20% 761 | -10/Mines | Discovered new exit (range 8) 777 | -10/Mines | Deemed a non-threat by the Exiles lab entrance 777 | -10/Mines | Discovered new exit (range 5) 780 | -10/Mines | Identified exit to Exiles 783 | -10/Mines | Entered Exiles 783 | -10/Exiles | Accompanied by 3 allies 814 | -10/Exiles | Discovered new exit (range 14) 851 | -10/Exiles | Met 8R-AWN 869 | -10/Exiles | Met EX-HEX 976 | -10/Exiles | Met EX-DEC 1029 | -10/Exiles | Met EX-BIN 1069 | -10/Exiles | Aligned with FarCom system 1071 | -10/Exiles | Given EX-Vault access code 1098 | -10/Exiles | Opened EX-Vault 1107 | -10/Exiles | Found Prototype Device 1139 | -10/Exiles | Warned to stay clear of 0b10 Research branches 1148 | -10/Exiles | Exiles lab attacked by MAIN.C 1246 | -10/Exiles | Discovered new exit (range 11) 1257 | -10/Exiles | Identified exit to Mines 1262 | -10/Exiles | Left Exiles lab with Trap Reconfigurator 1262 | -10/Exiles | Entered Mines 1262 | -9/Mines | Accompanied by 3 allies 1351 | -9/Mines | Lost 3 allies 1574 | -9/Mines | Build established: Scavenger-Mutant 2056 | -9/Mines | Destroyed by L-31 Rogue with Katana Last Messages --------------- 01717_ U-05 Engineer builds a Wall. 01717_ T-07 Excavator is excavating. 01721_ U-05 Engineer builds a Wall. 01725_ U-05 Engineer lays Concrete. 01726_ T-07 Excavator is excavating. 01727_ U-05 Engineer builds a Wall. 01730_ T-07 Excavator is excavating. 01731_ U-05 Engineer lays Concrete. 01734_ T-07 Excavator is excavating. 01734_ U-05 Engineer lays Concrete. 01739_ T-07 Excavator is excavating. 01744_ U-05 Engineer builds a Wall. 01748_ U-05 Engineer lays Concrete. 01749_ U-05 Engineer builds a Wall. 01753_ U-05 Engineer lays Concrete. 01754_ U-05 Engineer builds a Wall. 01787_ U-05 Engineer builds a Door. 01793_ U-05 Engineer builds a Wall. 01940_ R-06 Scavenger destroyed. 01942_ Acquired 4 matter. Map ----- +----------------------------------------------------+ | ???????????????# ### #####=*###??# ##???? | | ???????????????# """ # ## #### #???? | | ???????????????# """ ## %= ## ##??? | | ???????????????# """ ## % #### #### #??? | | ???????????????## ## #??# #??## #?? | | ????????????????### ### #??# #???# #? | | ??????????????????## ##?########??# %###### #? | | ????????????????????##?????????????# #?## #? | | ???????????????????????????????????#### #???# ##? | | ????????????????????????????????####### #????##?? | | ????????????????????????????????# #???????? | | ????????????????????????????????# ##### ##??????? | | ????????????????????????????????# #???## ##?????? | | ????????????????????????????????# #???# #?????? | | ????????????????????????????????# #???# ]#?????? | | ????????????????????????????????# #???## ##????? | | ????????????????????????????????# #???##%= #????? | | ????????????????????????????????# #???# % #????? | | ????????????????????????????????# #???# ![#????? | | ????????????????????????????????# #???# #????? | | ????????????????????????????????# #???## #????? | | ????????????????????????????????# #????### #????? | | ????????????????????????????????# #????### #????? | | ?????????????????????????####???# #????# #????? | | ????????????????????????## ##??# #????# #????? | | ????????????????????????#@ #### #????# ###????? | | ???????????????????????##l #????# #??????? | | ???????????????# ## ############ #??????? | | ????????s??# g ##?????# #??????? | | ???????????????# g ##??????# ######??????? | | ???????????????#### #???????# #?## ####???? | | ??????????????????## ???????# ### ###?? | | ???????????????????# ???????# ##? | | ???????????????????## #???????# #### """ #? | | ????????????????????## #????????# #??# """ #? | | ?????????????????????####?????????# #??# """ #? | | ??????????????????????????????????# #?## ##? | | ?????????????????????????????????## ### ###?? | | ?????????????????????????????????# ##???? | | ?????????????????????????????????# #????? | | ?????????????????????????????????## ## ##????? | | ??????????????????????????????????##########?????? | | ?????????????????????????????????????????????????? | | | | | | | | | | | | | | | +----------------------------------------------------+ Best States ------------- Heat Dissipation 25 Energy Generation 12 Energy Capacity 265 Matter Stores 300 Matter Capacity 450 Sight Range 16 Terrain Scan Range 16 Terrain Scan Density 10 Evasion (%) 55 Item Schematics ----------------- None Robot Schematics ------------------ None Fabricated ------------ Nothing Repaired ---------- Nothing Studied --------- None Alien Tech Used ----------------- None Achievements -------------- None Challenges ------------ None Game ------ Seed IntegrityVoltaicWall Manual? 0 Play Time 00:17:17 Cumulative 25.1 hours Start 2026.07.20 @ 18:05:33 End 2026.07.20 @ 18:21:32 Sessions 1 Manual Loads 0 Difficulty Rogue Special Mode None Game No. 43 Rogue 43 Adventurer 0 Explorer 0 Win Type - Total 0 Types 0/0/0/0/0/0/0/0/0/0 Lore% 15 Gallery% 21 Achievement% 17 Wizard Run 0 Options --------- Layout 1 ASCII 0 Keyboard 0 Movement Mouse Keybinds 0 Fullscreen 1 Font 24/Smallcaps Map View 50x35 Zoom Use 0% Tactical HUD 1 Map Filters NONE Filters NONE Steam 1 RUN: 34b89a3e-b68d-4ceb-85c4-0934cfea7357